[Event "*** SCC Grand Prix: Titled Tuesday Blitz"]
[Site "Chess.com"]
[Date "2020.09.08"]
[Round "1"]
[White "kinga2008"]
[Black "louis198"]
[Result "1-0"]
[WhiteElo "2147"]
[BlackElo "2498"]
[TimeControl "180+1"]
[EndTime "10:07:48 PDT"]
[Termination "kinga2008 won by resignation"]

1. e4 {[%clk 0:02:51.5]} 1... e6 {[%clk 0:03:00.9]} 2. d4 {[%clk 0:02:48.9]}
2... d5 {[%clk 0:03:01.8]} 3. Nc3 {[%clk 0:02:48.8]} 3... dxe4 {[%clk
0:03:01.9]} 4. Nxe4 {[%clk 0:02:48.4]} 4... Bd7 {[%clk 0:03:02.2]} 5. Bg5 {[%clk
0:02:46.8]} 5... Be7 {[%clk 0:03:01.7]} 6. Nf3 {[%clk 0:02:45.7]} 6... Bc6
{[%clk 0:03:01.1]} 7. Bxe7 {[%clk 0:02:43.5]} 7... Nxe7 {[%clk 0:03:00.7]} 8.
Bd3 {[%clk 0:02:43.5]} 8... Nf5 {[%clk 0:02:59]} 9. c3 {[%clk 0:02:41.9]} 9...
Nd6 {[%clk 0:02:58.9]} 10. Nxd6+ {[%clk 0:02:39.3]} 10... cxd6 {[%clk
0:02:57.7]} 11. O-O {[%clk 0:02:39.7]} 11... h6 {[%clk 0:02:58]} 12. c4 {[%clk
0:02:38]} 12... O-O {[%clk 0:02:57.4]} 13. Bc2 {[%clk 0:02:37.4]} 13... Nd7
{[%clk 0:02:50.3]} 14. d5 {[%clk 0:02:18.8]} 14... exd5 {[%clk 0:02:48.6]} 15.
cxd5 {[%clk 0:02:18]} 15... Bb5 {[%clk 0:02:49.1]} 16. Re1 {[%clk 0:02:12.4]}
16... Rc8 {[%clk 0:02:35.5]} 17. Nd4 {[%clk 0:02:05.1]} 17... Ba6 {[%clk
0:02:35.2]} 18. Bd3 {[%clk 0:02:02.2]} 18... Bxd3 {[%clk 0:02:34.4]} 19. Qxd3
{[%clk 0:01:54.4]} 19... Ne5 {[%clk 0:02:35.3]} 20. Qb3 {[%clk 0:01:49]} 20...
Qd7 {[%clk 0:02:19.9]} 21. Rac1 {[%clk 0:01:45.2]} 21... Rxc1 {[%clk 0:02:15]}
22. Rxc1 {[%clk 0:01:44.3]} 22... Rc8 {[%clk 0:02:15.9]} 23. Rxc8+ {[%clk
0:01:40.2]} 23... Qxc8 {[%clk 0:02:15.5]} 24. h3 {[%clk 0:01:38.7]} 24... a6
{[%clk 0:02:15]} 25. Kh2 {[%clk 0:01:33]} 25... Qc5 {[%clk 0:02:14.4]} 26. Nf3
{[%clk 0:01:25.6]} 26... Qxf2 {[%clk 0:02:08.3]} 27. Nxe5 {[%clk 0:01:24.1]}
27... Qf4+ {[%clk 0:02:07.6]} 28. Kh1 {[%clk 0:01:11.7]} 28... dxe5 {[%clk
0:01:55.2]} 29. Qxb7 {[%clk 0:01:10.6]} 29... e4 {[%clk 0:01:53.5]} 30. Qxa6
{[%clk 0:01:06.6]} 30... Qc1+ {[%clk 0:01:41.5]} 31. Kh2 {[%clk 0:01:05.9]}
31... Qxb2 {[%clk 0:01:42.1]} 32. Qc8+ {[%clk 0:01:02.1]} 32... Kh7 {[%clk
0:01:39.8]} 33. Qf5+ {[%clk 0:01:03]} 33... Kg8 {[%clk 0:01:39.8]} 34. Qxe4
{[%clk 0:01:03.9]} 34... Qxa2 {[%clk 0:01:38.2]} 35. Qe8+ {[%clk 0:01:04]} 35...
Kh7 {[%clk 0:01:37.8]} 36. Qxf7 {[%clk 0:01:04.9]} 36... Qd2 {[%clk 0:01:37.5]}
37. Qf5+ {[%clk 0:01:04.8]} 37... Kh8 {[%clk 0:01:36]} 38. Qf3 {[%clk
0:00:58.4]} 38... Kg8 {[%clk 0:01:34.9]} 39. h4 {[%clk 0:00:58.1]} 39... Qd4
{[%clk 0:01:34.7]} 40. g3 {[%clk 0:00:56.5]} 40... g5 {[%clk 0:01:27.9]} 41. Kh3
{[%clk 0:00:53.5]} 41... Kg7 {[%clk 0:01:24.1]} 42. h5 {[%clk 0:00:47]} 42...
Qe5 {[%clk 0:01:12.5]} 43. Qd3 {[%clk 0:00:36.9]} 43... g4+ {[%clk 0:00:58.8]}
44. Kxg4 {[%clk 0:00:26.7]} 44... Qg5+ {[%clk 0:00:58.7]} 45. Kh3 {[%clk
0:00:25.4]} 45... Qxh5+ {[%clk 0:00:59.6]} 46. Kg2 {[%clk 0:00:26]} 46... Qe8
{[%clk 0:00:58.5]} 47. d6 {[%clk 0:00:25.1]} 47... Qc6+ {[%clk 0:00:58.6]} 48.
Kh3 {[%clk 0:00:25]} 48... Qd7+ {[%clk 0:00:58.6]} 49. g4 {[%clk 0:00:25.5]}
49... h5 {[%clk 0:00:34.4]} 50. Qd4+ {[%clk 0:00:20.2]} 50... Kg8 {[%clk
0:00:34.8]} 51. Qd5+ {[%clk 0:00:20.1]} 51... Kg7 {[%clk 0:00:35.2]} 52. Qg5+
{[%clk 0:00:20]} 52... Kf8 {[%clk 0:00:35.3]} 53. Qf5+ {[%clk 0:00:16]} 53...
Ke8 {[%clk 0:00:31.5]} 54. Qxd7+ {[%clk 0:00:14.9]} 54... Kxd7 {[%clk
0:00:31.7]} 55. gxh5 {[%clk 0:00:15.8]} 55... Kxd6 {[%clk 0:00:32.5]} 56. h6
{[%clk 0:00:16.7]} 56... Ke7 {[%clk 0:00:33.3]} 57. h7 {[%clk 0:00:17.6]} 57...
Kf7 {[%clk 0:00:34.2]} 58. h8=Q {[%clk 0:00:18.5]} 58... Kg6 {[%clk 0:00:34.6]}
59. Qe8+ {[%clk 0:00:17.9]} 59... Kg7 {[%clk 0:00:34.5]} 60. Qe6 {[%clk
0:00:13]} 60... Kf8 {[%clk 0:00:34.2]} 61. Qd7 {[%clk 0:00:11.5]} 1-0

[Event "*** SCC Grand Prix: Titled Tuesday Blitz"]
[Site "Chess.com"]
[Date "2020.09.08"]
[Round "1"]
[White "midedu"]
[Black "Snowflake"]
[Result "1-0"]
[WhiteElo "2101"]
[BlackElo "2486"]
[TimeControl "180+1"]
[EndTime "10:07:49 PDT"]
[Termination "midedu won by checkmate"]

1. e4 {[%clk 0:03:00.9]} 1... c6 {[%clk 0:02:57.8]} 2. d4 {[%clk 0:02:59.3]}
2... d5 {[%clk 0:02:58.1]} 3. Nc3 {[%clk 0:02:58.6]} 3... dxe4 {[%clk
0:02:56.2]} 4. Nxe4 {[%clk 0:02:57.8]} 4... Bf5 {[%clk 0:02:56.7]} 5. Ng3 {[%clk
0:02:57.5]} 5... Bg6 {[%clk 0:02:57]} 6. Nf3 {[%clk 0:02:57.2]} 6... Nd7 {[%clk
0:02:56.1]} 7. Bc4 {[%clk 0:02:54.5]} 7... e6 {[%clk 0:02:52.3]} 8. Qe2 {[%clk
0:02:54.2]} 8... Ngf6 {[%clk 0:02:48.1]} 9. O-O {[%clk 0:02:51.9]} 9... Be7
{[%clk 0:02:46]} 10. Re1 {[%clk 0:02:40.5]} 10... Nd5 {[%clk 0:02:28.7]} 11. Bb3
{[%clk 0:02:33.7]} 11... O-O {[%clk 0:02:28.1]} 12. c4 {[%clk 0:02:33.1]} 12...
N5f6 {[%clk 0:02:15.5]} 13. d5 {[%clk 0:02:31.6]} 13... cxd5 {[%clk 0:02:08.6]}
14. cxd5 {[%clk 0:02:31.1]} 14... Bb4 {[%clk 0:02:07.4]} 15. Rd1 {[%clk
0:02:16.3]} 15... exd5 {[%clk 0:02:00.1]} 16. Bxd5 {[%clk 0:02:11.7]} 16... Re8
{[%clk 0:01:53.4]} 17. Qb5 {[%clk 0:01:53.9]} 17... Qb6 {[%clk 0:01:39.8]} 18.
Qxb6 {[%clk 0:01:47.8]} 18... Nxb6 {[%clk 0:01:40.7]} 19. Bxb7 {[%clk
0:01:46.9]} 19... Rab8 {[%clk 0:01:39.2]} 20. Bc6 {[%clk 0:01:44]} 20... Rec8
{[%clk 0:01:37.6]} 21. Bf4 {[%clk 0:01:38.7]} 21... Ra8 {[%clk 0:01:08.6]} 22.
Bxa8 {[%clk 0:01:38.3]} 22... Rxa8 {[%clk 0:01:09.5]} 23. a3 {[%clk 0:01:38.4]}
23... Bf8 {[%clk 0:01:08.9]} 24. Rac1 {[%clk 0:01:37.1]} 24... Na4 {[%clk
0:01:08.1]} 25. Be5 {[%clk 0:01:35.6]} 25... Ng4 {[%clk 0:01:00.6]} 26. Bd4
{[%clk 0:01:34.3]} 26... a5 {[%clk 0:01:01]} 27. h3 {[%clk 0:01:33.7]} 27... Nf6
{[%clk 0:01:00.2]} 28. Ne5 {[%clk 0:01:26.4]} 28... Rb8 {[%clk 0:00:56.1]} 29.
Nc6 {[%clk 0:01:21.5]} 29... Re8 {[%clk 0:00:50.4]} 30. Nxa5 {[%clk 0:01:19.8]}
30... h5 {[%clk 0:00:38.9]} 31. Rc4 {[%clk 0:01:18.4]} 31... h4 {[%clk 0:00:39]}
32. Nf1 {[%clk 0:01:13.7]} 32... Re6 {[%clk 0:00:38]} 33. Bxf6 {[%clk
0:01:09.7]} 33... Nb6 {[%clk 0:00:34]} 34. Rc6 {[%clk 0:01:05.7]} 34... gxf6
{[%clk 0:00:30.2]} 35. Rxe6 {[%clk 0:01:02.8]} 35... fxe6 {[%clk 0:00:31.1]} 36.
Ne3 {[%clk 0:01:02.3]} 36... Na4 {[%clk 0:00:30.7]} 37. b4 {[%clk 0:00:58.9]}
37... Nc3 {[%clk 0:00:31.2]} 38. Rd7 {[%clk 0:00:56.5]} 38... f5 {[%clk
0:00:23]} 39. Nec4 {[%clk 0:00:48.1]} 39... f4 {[%clk 0:00:21.3]} 40. Ne5 {[%clk
0:00:47.3]} 40... Bf5 {[%clk 0:00:21.7]} 41. Nac4 {[%clk 0:00:40.8]} 41... Nb1
{[%clk 0:00:15.2]} 42. b5 {[%clk 0:00:31.4]} 42... Be4 {[%clk 0:00:06.1]} 43. a4
{[%clk 0:00:30.1]} 43... Nc3 {[%clk 0:00:06.5]} 44. b6 {[%clk 0:00:25.2]} 44...
Nxa4 {[%clk 0:00:06.7]} 45. b7 {[%clk 0:00:25.2]} 45... Nc5 {[%clk 0:00:07.1]}
46. b8=Q {[%clk 0:00:22.9]} 46... Nxd7 {[%clk 0:00:07.5]} 47. Nxd7 {[%clk
0:00:23]} 47... f3 {[%clk 0:00:07.5]} 48. Qxf8+ {[%clk 0:00:23.2]} 48... Kh7
{[%clk 0:00:07.2]} 49. gxf3 {[%clk 0:00:22.2]} 49... Kg6 {[%clk 0:00:08.1]} 50.
Nce5+ {[%clk 0:00:21.8]} 50... Kg5 {[%clk 0:00:07.8]} 51. f4+ {[%clk 0:00:20.3]}
51... Kh5 {[%clk 0:00:07.7]} 52. Qg7 {[%clk 0:00:17.7]} 52... Bg6 {[%clk
0:00:04]} 53. Nf6# {[%clk 0:00:17.3]} 1-0

[Event "*** SCC Grand Prix: Titled Tuesday Blitz"]
[Site "Chess.com"]
[Date "2020.09.08"]
[Round "1"]
[White "Shivagami"]
[Black "Aemulus20"]
[Result "0-1"]
[WhiteElo "2228"]
[BlackElo "2562"]
[TimeControl "180+1"]
[EndTime "10:07:51 PDT"]
[Termination "Aemulus20 won by checkmate"]

1. d4 {[%clk 0:02:53.8]} 1... d5 {[%clk 0:02:58.9]} 2. c4 {[%clk 0:02:53.9]}
2... e6 {[%clk 0:02:59.3]} 3. Nc3 {[%clk 0:02:54.1]} 3... Be7 {[%clk 0:02:59.3]}
4. e4 {[%clk 0:02:52.9]} 4... dxe4 {[%clk 0:02:53.9]} 5. Nxe4 {[%clk 0:02:52.6]}
5... Nf6 {[%clk 0:02:54.6]} 6. Ng3 {[%clk 0:02:43.6]} 6... b6 {[%clk 0:02:53.7]}
7. Nf3 {[%clk 0:02:41.2]} 7... Bb7 {[%clk 0:02:53.3]} 8. Bd3 {[%clk 0:02:35.6]}
8... O-O {[%clk 0:02:51]} 9. O-O {[%clk 0:02:34.7]} 9... Nbd7 {[%clk 0:02:51.7]}
10. Ne5 {[%clk 0:02:31]} 10... c5 {[%clk 0:02:45.9]} 11. Be3 {[%clk 0:02:13.7]}
11... cxd4 {[%clk 0:02:32.5]} 12. Bxd4 {[%clk 0:02:13.9]} 12... Nc5 {[%clk
0:02:28.3]} 13. Bc2 {[%clk 0:02:10.1]} 13... Qc7 {[%clk 0:02:21.8]} 14. b4
{[%clk 0:02:05.2]} 14... Nce4 {[%clk 0:02:10.8]} 15. Nxe4 {[%clk 0:02:03.8]}
15... Bxe4 {[%clk 0:02:10.9]} 16. Bxe4 {[%clk 0:01:54.6]} 16... Nxe4 {[%clk
0:02:10.8]} 17. Qc2 {[%clk 0:01:52.2]} 17... Nd6 {[%clk 0:02:03.2]} 18. Rac1
{[%clk 0:01:46.3]} 18... Nf5 {[%clk 0:02:02.6]} 19. Bb2 {[%clk 0:01:44.3]} 19...
Bxb4 {[%clk 0:02:00.2]} 20. Qe4 {[%clk 0:01:37.2]} 20... Be7 {[%clk 0:01:37]}
21. Nc6 {[%clk 0:01:26.4]} 21... Bg5 {[%clk 0:01:33.9]} 22. Rcd1 {[%clk
0:01:21]} 22... Rac8 {[%clk 0:01:15.7]} 23. Ne5 {[%clk 0:01:09.1]} 23... Rfd8
{[%clk 0:01:06.8]} 24. f4 {[%clk 0:00:50.5]} 24... Bf6 {[%clk 0:01:05.6]} 25. g4
{[%clk 0:00:41.2]} 25... Nd6 {[%clk 0:01:05.3]} 26. Qc2 {[%clk 0:00:38.9]} 26...
Nxc4 {[%clk 0:00:56.3]} 27. Rxd8+ {[%clk 0:00:36.7]} 27... Rxd8 {[%clk
0:00:30.5]} 28. Rc1 {[%clk 0:00:14.1]} 28... Qc5+ {[%clk 0:00:25.6]} 29. Kh1
{[%clk 0:00:12.1]} 29... Qd5+ {[%clk 0:00:22.3]} 30. Kg1 {[%clk 0:00:12.2]}
30... Bxe5 {[%clk 0:00:19.7]} 31. fxe5 {[%clk 0:00:12.5]} 31... Nxb2 {[%clk
0:00:15.3]} 32. Qxb2 {[%clk 0:00:12.5]} 32... h6 {[%clk 0:00:14.1]} 33. Qc2
{[%clk 0:00:12.6]} 33... Qd4+ {[%clk 0:00:14]} 34. Kg2 {[%clk 0:00:12]} 34...
Qxg4+ {[%clk 0:00:14.3]} 35. Kh1 {[%clk 0:00:11.7]} 35... Qf3+ {[%clk
0:00:13.7]} 36. Kg1 {[%clk 0:00:11.9]} 36... Qe3+ {[%clk 0:00:12.3]} 37. Kh1
{[%clk 0:00:11.3]} 37... Qxe5 {[%clk 0:00:11.9]} 38. Qc7 {[%clk 0:00:11]} 38...
Qxc7 {[%clk 0:00:10.7]} 39. Rxc7 {[%clk 0:00:11.9]} 39... Rd1+ {[%clk
0:00:10.9]} 40. Kg2 {[%clk 0:00:11.4]} 40... Rd2+ {[%clk 0:00:11.7]} 41. Kf3
{[%clk 0:00:10.1]} 41... Rxa2 {[%clk 0:00:12.6]} 42. Rc8+ {[%clk 0:00:10.1]}
42... Kh7 {[%clk 0:00:13.3]} 43. Rc7 {[%clk 0:00:10.6]} 43... Kg6 {[%clk
0:00:13.8]} 44. Rc4 {[%clk 0:00:10.2]} 44... f5 {[%clk 0:00:13.1]} 45. Rc6
{[%clk 0:00:09.8]} 45... Kf6 {[%clk 0:00:13.6]} 46. Kf4 {[%clk 0:00:10.1]} 46...
Ra4+ {[%clk 0:00:13.4]} 47. Kf3 {[%clk 0:00:10.4]} 47... b5 {[%clk 0:00:14]} 48.
Ke3 {[%clk 0:00:10.7]} 48... Ra3+ {[%clk 0:00:14.3]} 49. Kf4 {[%clk 0:00:10.1]}
49... g5# {[%clk 0:00:13.1]} 0-1

[Event "*** SCC Grand Prix: Titled Tuesday Blitz"]
[Site "Chess.com"]
[Date "2020.09.08"]
[Round "1"]
[White "MarcoRiehle"]
[Black "Snegokhod"]
[Result "1-0"]
[WhiteElo "2694"]
[BlackElo "2356"]
[TimeControl "180+1"]
[EndTime "10:07:52 PDT"]
[Termination "MarcoRiehle won by resignation"]

1. e4 {[%clk 0:03:00.8]} 1... c5 {[%clk 0:02:57.1]} 2. a3 {[%clk 0:03:00.4]}
2... Nf6 {[%clk 0:02:53]} 3. e5 {[%clk 0:02:56.7]} 3... Nd5 {[%clk 0:02:52.7]}
4. c4 {[%clk 0:02:57.1]} 4... Nc7 {[%clk 0:02:46]} 5. b4 {[%clk 0:02:56.1]} 5...
b6 {[%clk 0:02:43.3]} 6. Bb2 {[%clk 0:02:52]} 6... Bb7 {[%clk 0:02:41.4]} 7. Nf3
{[%clk 0:02:49.8]} 7... Nc6 {[%clk 0:02:40.2]} 8. b5 {[%clk 0:02:49]} 8... Na5
{[%clk 0:02:36.5]} 9. Be2 {[%clk 0:02:49.3]} 9... d5 {[%clk 0:02:33.9]} 10. exd6
{[%clk 0:02:47.6]} 10... Qxd6 {[%clk 0:02:29.7]} 11. O-O {[%clk 0:02:47]} 11...
O-O-O {[%clk 0:02:29.1]} 12. d3 {[%clk 0:02:45.9]} 12... f6 {[%clk 0:02:27.1]}
13. Nc3 {[%clk 0:02:37.1]} 13... e5 {[%clk 0:02:26.3]} 14. Nd2 {[%clk
0:02:37.5]} 14... Ne6 {[%clk 0:02:22.6]} 15. Bf3 {[%clk 0:02:34.5]} 15... Nd4
{[%clk 0:02:19.6]} 16. Bxb7+ {[%clk 0:02:34.4]} 16... Kxb7 {[%clk 0:02:11.8]}
17. Nf3 {[%clk 0:02:33.2]} 17... Kb8 {[%clk 0:02:07.8]} 18. Nxd4 {[%clk
0:02:31.8]} 18... cxd4 {[%clk 0:01:56.3]} 19. Nd5 {[%clk 0:02:26.5]} 19... Qc5
{[%clk 0:01:53.5]} 20. a4 {[%clk 0:02:20.7]} 20... Rxd5 {[%clk 0:01:51.8]} 21.
cxd5 {[%clk 0:01:37.5]} 21... Qxd5 {[%clk 0:01:51.4]} 22. Qf3 {[%clk 0:01:27.3]}
22... Qxf3 {[%clk 0:01:49.7]} 23. gxf3 {[%clk 0:01:28.2]} 23... g5 {[%clk
0:01:44.2]} 24. Kg2 {[%clk 0:01:18.2]} 24... Bb4 {[%clk 0:01:39.9]} 25. Rac1
{[%clk 0:01:07.1]} 25... h5 {[%clk 0:01:35.9]} 26. h3 {[%clk 0:01:05.7]} 26...
Bd2 {[%clk 0:01:27.9]} 27. Rc2 {[%clk 0:01:04.7]} 27... Bf4 {[%clk 0:01:27.3]}
28. Bc1 {[%clk 0:01:05.1]} 28... Nb3 {[%clk 0:01:23.8]} 29. Bxf4 {[%clk
0:01:04.5]} 29... gxf4 {[%clk 0:01:22.4]} 30. Rc6 {[%clk 0:01:04.6]} 30... Rh6
{[%clk 0:01:13]} 31. Rd1 {[%clk 0:00:59.2]} 31... Kb7 {[%clk 0:01:07.7]} 32. Kh2
{[%clk 0:00:57.6]} 32... Rg6 {[%clk 0:01:03.2]} 33. Rg1 {[%clk 0:00:55.4]} 33...
Rxg1 {[%clk 0:01:01.3]} 34. Kxg1 {[%clk 0:00:56.2]} 34... Nc5 {[%clk 0:01:01.5]}
35. a5 {[%clk 0:00:56.4]} 35... Nxd3 {[%clk 0:01:00.9]} 36. a6+ {[%clk 0:00:57]}
36... Kb8 {[%clk 0:01:00.8]} 37. Rxf6 {[%clk 0:00:57.7]} 37... Ne1 {[%clk
0:00:54.5]} 38. Rf8+ {[%clk 0:00:53.6]} 38... Kc7 {[%clk 0:00:54.1]} 39. Rf7+
{[%clk 0:00:54.5]} 39... Kb8 {[%clk 0:00:53.5]} 40. Rb7+ {[%clk 0:00:51.1]}
40... Ka8 {[%clk 0:00:52.4]} 41. Kf1 {[%clk 0:00:51.7]} 41... Nxf3 {[%clk
0:00:51.6]} 42. Ke2 {[%clk 0:00:50.7]} 42... e4 {[%clk 0:00:43]} 43. Re7 {[%clk
0:00:43.9]} 43... d3+ {[%clk 0:00:41.3]} 44. Kd1 {[%clk 0:00:44.4]} 44... Kb8
{[%clk 0:00:39.8]} 45. Rxe4 {[%clk 0:00:44.7]} 45... Ng1 {[%clk 0:00:32.2]} 46.
h4 {[%clk 0:00:40.4]} 46... Kc7 {[%clk 0:00:30.7]} 47. Re7+ {[%clk 0:00:40]}
47... Kb8 {[%clk 0:00:28.5]} 48. Rb7+ {[%clk 0:00:40.4]} 48... Kc8 {[%clk
0:00:26.9]} 49. Rxa7 {[%clk 0:00:40.5]} 49... Ne2 {[%clk 0:00:26.3]} 50. Ra8+
{[%clk 0:00:40.4]} 50... Kc7 {[%clk 0:00:25.9]} 51. Kd2 {[%clk 0:00:39.8]} 51...
Nd4 {[%clk 0:00:25]} 52. Kxd3 {[%clk 0:00:35.9]} 52... Nxb5 {[%clk 0:00:24.9]}
53. Rh8 {[%clk 0:00:36.6]} 53... Kc6 {[%clk 0:00:18]} 54. Rxh5 {[%clk
0:00:34.6]} 54... Na7 {[%clk 0:00:14.4]} 55. Rh7 {[%clk 0:00:34.3]} 55... Nb5
{[%clk 0:00:10.1]} 56. a7 {[%clk 0:00:34]} 56... Nxa7 {[%clk 0:00:09.7]} 57.
Rxa7 {[%clk 0:00:34.9]} 1-0

[Event "*** SCC Grand Prix: Titled Tuesday Blitz"]
[Site "Chess.com"]
[Date "2020.09.08"]
[Round "1"]
[White "FLamps8"]
[Black "beto-betun"]
[Result "1-0"]
[WhiteElo "2517"]
[BlackElo "2136"]
[TimeControl "180+1"]
[EndTime "10:07:53 PDT"]
[Termination "FLamps8 won by resignation"]

1. e3 {[%clk 0:02:56.2]} 1... Nf6 {[%clk 0:02:53.1]} 2. Nf3 {[%clk 0:02:54.9]}
2... g6 {[%clk 0:02:52.5]} 3. Bc4 {[%clk 0:02:54.4]} 3... Bg7 {[%clk 0:02:52.4]}
4. O-O {[%clk 0:02:53.8]} 4... O-O {[%clk 0:02:52.3]} 5. d4 {[%clk 0:02:51.2]}
5... d5 {[%clk 0:02:52.2]} 6. Bb3 {[%clk 0:02:49.8]} 6... c6 {[%clk 0:02:50.8]}
7. Re1 {[%clk 0:02:48.1]} 7... Bg4 {[%clk 0:02:50.1]} 8. h3 {[%clk 0:02:47.7]}
8... Bxf3 {[%clk 0:02:49.2]} 9. Qxf3 {[%clk 0:02:48.6]} 9... Nbd7 {[%clk
0:02:47.3]} 10. c3 {[%clk 0:02:48.4]} 10... e5 {[%clk 0:02:44.8]} 11. Nd2 {[%clk
0:02:36.8]} 11... e4 {[%clk 0:02:43.4]} 12. Qg3 {[%clk 0:02:36.7]} 12... Nh5
{[%clk 0:02:35.2]} 13. Qh2 {[%clk 0:02:32.9]} 13... f5 {[%clk 0:02:31.5]} 14.
Nf1 {[%clk 0:02:18.7]} 14... Qf6 {[%clk 0:02:16.3]} 15. g4 {[%clk 0:02:09.1]}
15... f4 {[%clk 0:01:55.6]} 16. gxh5 {[%clk 0:02:06.4]} 16... f3 {[%clk
0:01:53.6]} 17. hxg6 {[%clk 0:02:03.3]} 17... Qxg6+ {[%clk 0:01:48.4]} 18. Ng3
{[%clk 0:01:59.6]} 18... h5 {[%clk 0:01:42.5]} 19. h4 {[%clk 0:01:54.6]} 19...
Nf6 {[%clk 0:01:41.5]} 20. Qh3 {[%clk 0:01:47.5]} 20... Ng4 {[%clk 0:01:39.9]}
21. Kf1 {[%clk 0:01:19.6]} 21... Kh7 {[%clk 0:01:38.1]} 22. Bc2 {[%clk
0:01:14.5]} 22... Rae8 {[%clk 0:01:26]} 23. b3 {[%clk 0:01:13]} 23... Kh6 {[%clk
0:01:22]} 24. Ba3 {[%clk 0:01:12.7]} 24... Rf7 {[%clk 0:01:16.3]} 25. Red1
{[%clk 0:01:12.3]} 25... Bf6 {[%clk 0:01:08.8]} 26. Rd2 {[%clk 0:01:11.5]} 26...
Bd8 {[%clk 0:01:04.8]} 27. Ke1 {[%clk 0:01:08.8]} 27... Qf6 {[%clk 0:01:01.2]}
28. Kd1 {[%clk 0:00:54.8]} 28... Qxh4 {[%clk 0:00:57.8]} 29. Qxh4 {[%clk
0:00:45.1]} 29... Bxh4 {[%clk 0:00:58.7]} 30. Nh1 {[%clk 0:00:45.7]} 30... Rg7
{[%clk 0:00:54.3]} 31. Kc1 {[%clk 0:00:42.5]} 31... Nf6 {[%clk 0:00:51]} 32. Bd6
{[%clk 0:00:40.6]} 32... Reg8 {[%clk 0:00:48.9]} 33. Bf4+ {[%clk 0:00:37.8]}
33... Kh7 {[%clk 0:00:49.3]} 34. Kb2 {[%clk 0:00:38.4]} 34... Kh8 {[%clk
0:00:43.2]} 35. Be5 {[%clk 0:00:37.8]} 35... Rg2 {[%clk 0:00:41]} 36. Ng3 {[%clk
0:00:37.2]} 36... Kh7 {[%clk 0:00:32.2]} 37. Bxf6 {[%clk 0:00:25.8]} 37... Bxf6
{[%clk 0:00:33.1]} 38. Nxe4 {[%clk 0:00:25.8]} 38... dxe4 {[%clk 0:00:30.6]} 39.
Bxe4+ {[%clk 0:00:26.7]} 39... Kh6 {[%clk 0:00:30.5]} 40. Bxf3 {[%clk
0:00:27.4]} 40... Rg1 {[%clk 0:00:28.7]} 41. Rdd1 {[%clk 0:00:20.9]} 41... Rxd1
{[%clk 0:00:25.9]} 42. Rxd1 {[%clk 0:00:21.8]} 42... h4 {[%clk 0:00:24.9]} 43.
e4 {[%clk 0:00:20.3]} 43... Rd8 {[%clk 0:00:05.8]} 44. Kc2 {[%clk 0:00:20.4]}
44... Kg5 {[%clk 0:00:04.2]} 45. Kd3 {[%clk 0:00:20.9]} 45... Kf4 {[%clk
0:00:04.7]} 46. Ke2 {[%clk 0:00:21]} 46... Rg8 {[%clk 0:00:02.9]} 47. Rh1 {[%clk
0:00:20.3]} 47... Rg5 {[%clk 0:00:02.2]} 48. e5 {[%clk 0:00:20.5]} 48... Be7
{[%clk 0:00:01.5]} 49. Rxh4+ {[%clk 0:00:20.7]} 49... Kf5 {[%clk 0:00:01.9]} 50.
Re4 {[%clk 0:00:20.6]} 50... Ke6 {[%clk 0:00:01.6]} 51. Re3 {[%clk 0:00:20.8]}
51... a5 {[%clk 0:00:01.4]} 52. c4 {[%clk 0:00:21.4]} 52... a4 {[%clk
0:00:01.2]} 53. d5+ {[%clk 0:00:22.3]} 53... cxd5 {[%clk 0:00:01.2]} 54. cxd5+
{[%clk 0:00:23.2]} 54... Kf7 {[%clk 0:00:01.8]} 55. d6 {[%clk 0:00:23.2]} 55...
Ke8 {[%clk 0:00:02.7]} 56. dxe7 {[%clk 0:00:22.8]} 56... Kxe7 {[%clk 0:00:03.6]}
57. bxa4 {[%clk 0:00:22.8]} 1-0

[Event "*** SCC Grand Prix: Titled Tuesday Blitz"]
[Site "Chess.com"]
[Date "2020.09.08"]
[Round "1"]
[White "aljado"]
[Black "PotapovaM"]
[Result "0-1"]
[WhiteElo "2112"]
[BlackElo "2510"]
[TimeControl "180+1"]
[EndTime "10:07:53 PDT"]
[Termination "PotapovaM won on time"]

1. e4 {[%clk 0:02:59]} 1... c5 {[%clk 0:02:56.9]} 2. Nf3 {[%clk 0:02:58]} 2...
d6 {[%clk 0:02:57.5]} 3. c3 {[%clk 0:02:57.3]} 3... Nf6 {[%clk 0:02:57.5]} 4.
Bc4 {[%clk 0:02:56.5]} 4... e6 {[%clk 0:02:56.3]} 5. Qe2 {[%clk 0:02:55.5]} 5...
Be7 {[%clk 0:02:55.3]} 6. O-O {[%clk 0:02:54.6]} 6... Nc6 {[%clk 0:02:54.7]} 7.
d4 {[%clk 0:02:54]} 7... O-O {[%clk 0:02:53.9]} 8. Bg5 {[%clk 0:02:52.4]} 8...
h6 {[%clk 0:02:52]} 9. Bh4 {[%clk 0:02:51.9]} 9... a6 {[%clk 0:02:48.9]} 10. a4
{[%clk 0:02:50.5]} 10... cxd4 {[%clk 0:02:45.4]} 11. cxd4 {[%clk 0:02:49.2]}
11... d5 {[%clk 0:02:27.5]} 12. exd5 {[%clk 0:02:45.7]} 12... exd5 {[%clk
0:02:23.9]} 13. Bd3 {[%clk 0:02:44.2]} 13... Bg4 {[%clk 0:02:22.9]} 14. Re1
{[%clk 0:02:10.8]} 14... Bb4 {[%clk 0:02:09.6]} 15. Nc3 {[%clk 0:02:09.5]} 15...
Nxd4 {[%clk 0:02:08.9]} 16. Qe3 {[%clk 0:02:00.4]} 16... Nb3 {[%clk 0:02:06.2]}
17. Qf4 {[%clk 0:01:51.2]} 17... Bd6 {[%clk 0:01:35]} 18. Qxg4 {[%clk
0:01:46.5]} 18... Nxg4 {[%clk 0:01:32.6]} 19. Bxd8 {[%clk 0:01:45.9]} 19... Nxa1
{[%clk 0:01:27.5]} 20. Bh4 {[%clk 0:01:36.4]} 20... Nb3 {[%clk 0:01:26.5]} 21.
Nxd5 {[%clk 0:01:35.1]} 21... Rfe8 {[%clk 0:01:22.4]} 22. Rf1 {[%clk 0:01:31.4]}
22... Nc5 {[%clk 0:01:21.2]} 23. Bc4 {[%clk 0:01:29.4]} 23... Ne5 {[%clk
0:01:03.3]} 24. Nxe5 {[%clk 0:01:27]} 24... Bxe5 {[%clk 0:01:04.2]} 25. b3
{[%clk 0:01:20.8]} 25... g5 {[%clk 0:00:58.3]} 26. Bg3 {[%clk 0:01:18]} 26...
Kg7 {[%clk 0:00:58.6]} 27. f4 {[%clk 0:01:15.3]} 27... Bd4+ {[%clk 0:00:57.5]}
28. Kh1 {[%clk 0:01:13.5]} 28... g4 {[%clk 0:00:53.8]} 29. f5 {[%clk 0:01:12.6]}
29... Rad8 {[%clk 0:00:41.7]} 30. f6+ {[%clk 0:01:06.9]} 30... Kh7 {[%clk
0:00:38.1]} 31. h3 {[%clk 0:01:01]} 31... gxh3 {[%clk 0:00:37.1]} 32. gxh3
{[%clk 0:01:00.1]} 32... b5 {[%clk 0:00:37.3]} 33. axb5 {[%clk 0:00:50.9]} 33...
axb5 {[%clk 0:00:38.2]} 34. Bxb5 {[%clk 0:00:50.8]} 34... Rg8 {[%clk 0:00:37.3]}
35. Rd1 {[%clk 0:00:22.3]} 35... Rxd5 {[%clk 0:00:35.4]} 36. Bc4 {[%clk
0:00:21.2]} 36... Rdd8 {[%clk 0:00:31.4]} 37. Bc7 {[%clk 0:00:20.6]} 37... Rd7
{[%clk 0:00:31.4]} 38. Bb6 {[%clk 0:00:20.2]} 38... Rc8 {[%clk 0:00:14.7]} 39.
Rf1 {[%clk 0:00:09.7]} 39... Rc6 {[%clk 0:00:13.7]} 40. Ba5 {[%clk 0:00:08.1]}
40... Be5 {[%clk 0:00:07.5]} 41. Bb5 {[%clk 0:00:06.8]} 41... Rcd6 {[%clk
0:00:07.2]} 42. Bxd7 {[%clk 0:00:06.3]} 42... Rxd7 {[%clk 0:00:08.1]} 43. Bb4
{[%clk 0:00:05.5]} 43... Nd3 {[%clk 0:00:07.7]} 44. Be7 {[%clk 0:00:03.3]} 44...
Rb7 {[%clk 0:00:06.7]} 0-1